[Event "Early-Titled-Tuesday-Blitz-September-12-2023"]
[Site "Chess.com"]
[Date "2023.09.12"]
[Round "2"]
[White "Slovak_fighter2000"]
[Black "Rurep26"]
[Result "0-1"]
[WhiteElo "2424"]
[BlackElo "2811"]
[TimeControl "180+1"]
[EndTime "8:17:29 PDT"]
[Termination "Rurep26 won by resignation"]

1. Nf3 {[%clk 0:02:59.9]} 1... d5 {[%clk 0:02:59.9]} 2. g3 {[%clk 0:02:59.7]}
2... c6 {[%clk 0:03:00.8]} 3. Bg2 {[%clk 0:03:00.6]} 3... Nf6 {[%clk 0:03:01.6]}
4. c4 {[%clk 0:02:58.8]} 4... dxc4 {[%clk 0:03:00.3]} 5. a4 {[%clk 0:02:57.1]}
5... Na6 {[%clk 0:02:59]} 6. Na3 {[%clk 0:02:56.5]} 6... Be6 {[%clk 0:02:57.9]}
7. Ne5 {[%clk 0:02:53.3]} 7... Bd5 {[%clk 0:02:56.6]} 8. O-O {[%clk 0:02:48.2]}
8... Bxg2 {[%clk 0:02:55.7]} 9. Kxg2 {[%clk 0:02:48.8]} 9... Qd5+ {[%clk
0:02:56.5]} 10. Nf3 {[%clk 0:02:49.4]} 10... g5 {[%clk 0:02:56.4]} 11. Kg1
{[%clk 0:02:45.1]} 11... h5 {[%clk 0:02:55.1]} 12. Qc2 {[%clk 0:02:44]} 12... g4
{[%clk 0:02:51.3]} 13. Nh4 {[%clk 0:02:34.7]} 13... e6 {[%clk 0:02:42.5]} 14.
Qxc4 {[%clk 0:02:30.7]} 14... Nb4 {[%clk 0:02:35.2]} 15. d3 {[%clk 0:02:25.7]}
15... Be7 {[%clk 0:02:32]} 16. Bd2 {[%clk 0:02:19.6]} 16... a5 {[%clk
0:02:30.9]} 17. Qxd5 {[%clk 0:02:14.5]} 17... Nfxd5 {[%clk 0:02:24.8]} 18. Ng2
{[%clk 0:02:11.1]} 18... h4 {[%clk 0:02:20.5]} 19. Nf4 {[%clk 0:02:01.9]} 19...
hxg3 {[%clk 0:02:20]} 20. hxg3 {[%clk 0:02:02.8]} 20... Nxf4 {[%clk 0:02:18.3]}
21. Bxf4 {[%clk 0:02:01.5]} 21... Nd5 {[%clk 0:02:19.2]} 22. Bd2 {[%clk
0:01:58.7]} 22... f6 {[%clk 0:02:04]} 23. Kg2 {[%clk 0:01:53]} 23... Bxa3 {[%clk
0:02:00.3]} 24. Rxa3 {[%clk 0:01:52]} 24... Kd7 {[%clk 0:01:58.5]} 25. Rh1
{[%clk 0:01:49.6]} 25... Rxh1 {[%clk 0:01:57.1]} 26. Kxh1 {[%clk 0:01:50]} 26...
Kc7 {[%clk 0:01:57.5]} 27. Kg2 {[%clk 0:01:47.4]} 27... b6 {[%clk 0:01:56.3]}
28. Ra1 {[%clk 0:01:36]} 28... Rh8 {[%clk 0:01:55.3]} 29. Rc1 {[%clk 0:01:22.1]}
29... Kb7 {[%clk 0:01:54.5]} 30. Rh1 {[%clk 0:01:14.1]} 30... Rxh1 {[%clk
0:01:53.5]} 31. Kxh1 {[%clk 0:01:13.3]} 31... Ka6 {[%clk 0:01:51.3]} 32. Kg2
{[%clk 0:01:09.3]} 32... b5 {[%clk 0:01:51.2]} 33. axb5+ {[%clk 0:01:09.2]}
33... cxb5 {[%clk 0:01:51.8]} 34. f3 {[%clk 0:01:08]} 34... f5 {[%clk
0:01:51.6]} 35. e4 {[%clk 0:01:06.4]} 35... Ne7 {[%clk 0:01:48.9]} 36. Kf2
{[%clk 0:00:57.2]} 36... Nc6 {[%clk 0:01:45.2]} 37. fxg4 {[%clk 0:00:51.8]}
37... fxg4 {[%clk 0:01:44.3]} 38. Ke3 {[%clk 0:00:48.6]} 38... e5 {[%clk
0:01:44.4]} 39. b3 {[%clk 0:00:46.1]} 39... b4 {[%clk 0:01:41.8]} 40. Bc1 {[%clk
0:00:38.6]} 40... Kb5 {[%clk 0:01:39.2]} 41. Bb2 {[%clk 0:00:39.5]} 41... a4
{[%clk 0:01:39.5]} 42. bxa4+ {[%clk 0:00:39]} 42... Kxa4 {[%clk 0:01:40.4]} 43.
Kd2 {[%clk 0:00:34.7]} 43... Kb3 {[%clk 0:01:38.7]} 44. Kc1 {[%clk 0:00:29.5]}
44... Ka2 {[%clk 0:01:37]} 45. Kc2 {[%clk 0:00:19.4]} 45... Nd4+ {[%clk
0:01:37.1]} 46. Kc1 {[%clk 0:00:15.6]} 46... Ne2+ {[%clk 0:01:33.2]} 47. Kc2
{[%clk 0:00:15.5]} 47... b3+ {[%clk 0:01:33.2]} 48. Kd2 {[%clk 0:00:16.3]} 48...
Kxb2 {[%clk 0:01:31.4]} 49. Kxe2 {[%clk 0:00:16.7]} 49... Kc2 {[%clk 0:01:31.8]}
0-1

[Event "Early-Titled-Tuesday-Blitz-September-12-2023"]
[Site "Chess.com"]
[Date "2023.09.12"]
[Round "2"]
[White "GodDMuhammad"]
[Black "LoaySameer"]
[Result "1-0"]
[WhiteElo "2344"]
[BlackElo "2515"]
[TimeControl "180+1"]
[EndTime "8:17:30 PDT"]
[Termination "GodDMuhammad won by resignation"]

1. f4 {[%clk 0:03:00.9]} 1... g6 {[%clk 0:02:54.3]} 2. Nf3 {[%clk 0:03:00.5]}
2... Bg7 {[%clk 0:02:54.9]} 3. g3 {[%clk 0:03:01]} 3... Nf6 {[%clk 0:02:55.6]}
4. d3 {[%clk 0:03:01]} 4... O-O {[%clk 0:02:56.5]} 5. e4 {[%clk 0:03:00.8]} 5...
d5 {[%clk 0:02:56.8]} 6. e5 {[%clk 0:03:01.2]} 6... Nfd7 {[%clk 0:02:57.4]} 7.
Bg2 {[%clk 0:03:01.7]} 7... c5 {[%clk 0:02:57.8]} 8. c3 {[%clk 0:03:02.2]} 8...
Nc6 {[%clk 0:02:58.4]} 9. Be3 {[%clk 0:03:01.7]} 9... e6 {[%clk 0:02:49.3]} 10.
O-O {[%clk 0:02:56.8]} 10... b6 {[%clk 0:02:47.8]} 11. d4 {[%clk 0:02:46.2]}
11... a5 {[%clk 0:02:38.4]} 12. Nbd2 {[%clk 0:02:41.9]} 12... a4 {[%clk
0:02:37]} 13. Rf2 {[%clk 0:02:37.7]} 13... a3 {[%clk 0:02:36.7]} 14. b3 {[%clk
0:02:37.7]} 14... cxd4 {[%clk 0:02:14.7]} 15. Nxd4 {[%clk 0:02:33.9]} 15... Nxd4
{[%clk 0:02:14.6]} 16. Bxd4 {[%clk 0:02:33]} 16... Qc7 {[%clk 0:02:04.7]} 17. c4
{[%clk 0:02:29.8]} 17... Bb7 {[%clk 0:02:03.7]} 18. cxd5 {[%clk 0:02:24.2]}
18... Bxd5 {[%clk 0:02:03.9]} 19. Rc1 {[%clk 0:02:23.8]} 19... Qb7 {[%clk
0:02:02.2]} 20. Nc4 {[%clk 0:02:19.2]} 20... Bxg2 {[%clk 0:01:59.3]} 21. Rxg2
{[%clk 0:02:19.2]} 21... Rfc8 {[%clk 0:01:29.7]} 22. Rgc2 {[%clk 0:02:15.4]}
22... Qd5 {[%clk 0:01:05.4]} 23. Bf2 {[%clk 0:01:58.5]} 23... Rab8 {[%clk
0:00:18.9]} 24. Qxd5 {[%clk 0:01:53]} 24... exd5 {[%clk 0:00:19.8]} 25. Nxa3
{[%clk 0:01:53.5]} 25... Rxc2 {[%clk 0:00:19.7]} 26. Rxc2 {[%clk 0:01:54]} 26...
Bf8 {[%clk 0:00:20.2]} 27. Nb5 {[%clk 0:01:53.4]} 27... Bc5 {[%clk 0:00:20.6]}
28. Rd2 {[%clk 0:01:47.8]} 28... Ra8 {[%clk 0:00:17.8]} 29. a4 {[%clk 0:01:48]}
29... Nf8 {[%clk 0:00:17.1]} 30. Bxc5 {[%clk 0:01:46.2]} 30... bxc5 {[%clk
0:00:17.5]} 31. Rxd5 {[%clk 0:01:47.1]} 31... Ne6 {[%clk 0:00:18.4]} 32. Rd7
{[%clk 0:01:41.8]} 32... Kf8 {[%clk 0:00:17.8]} 33. Nd6 {[%clk 0:01:41.7]} 33...
Kg8 {[%clk 0:00:17.4]} 34. Nxf7 {[%clk 0:01:41.2]} 34... Rb8 {[%clk 0:00:17.9]}
35. Nh6+ {[%clk 0:01:37.8]} 35... Kh8 {[%clk 0:00:18.5]} 36. f5 {[%clk
0:01:36.9]} 36... gxf5 {[%clk 0:00:18.5]} 37. Nxf5 {[%clk 0:01:37.2]} 37... Kg8
{[%clk 0:00:17.6]} 38. Re7 {[%clk 0:01:35.3]} 38... Nd4 {[%clk 0:00:17.6]} 39.
Nxd4 {[%clk 0:01:33.7]} 39... cxd4 {[%clk 0:00:18.5]} 40. Rd7 {[%clk 0:01:33.8]}
40... Rb4 {[%clk 0:00:19.1]} 41. a5 {[%clk 0:01:33.2]} 41... Rxb3 {[%clk
0:00:18.6]} 42. Rxd4 {[%clk 0:01:33.2]} 42... Ra3 {[%clk 0:00:19.5]} 43. Rd5
{[%clk 0:01:33]} 43... Kf7 {[%clk 0:00:20.4]} 44. Kg2 {[%clk 0:01:32.7]} 44...
Ke6 {[%clk 0:00:21.1]} 45. Rb5 {[%clk 0:01:32.4]} 45... Ra4 {[%clk 0:00:21.5]}
46. h4 {[%clk 0:01:31.9]} 46... h5 {[%clk 0:00:21.2]} 47. Rb6+ {[%clk
0:01:29.7]} 47... Kf5 {[%clk 0:00:20.6]} 48. Rf6+ {[%clk 0:01:24.7]} 48... Kxe5
{[%clk 0:00:19.8]} 49. Rh6 {[%clk 0:01:25]} 49... Ke4 {[%clk 0:00:19]} 50. Rxh5
{[%clk 0:01:24]} 50... Ra2+ {[%clk 0:00:19.9]} 51. Kh3 {[%clk 0:01:24.2]} 51...
Kf3 {[%clk 0:00:20.4]} 52. Rf5+ {[%clk 0:01:24.2]} 52... Ke4 {[%clk 0:00:21.3]}
53. Rg5 {[%clk 0:01:22.5]} 53... Kf3 {[%clk 0:00:20.7]} 54. h5 {[%clk
0:01:22.1]} 54... Ra1 {[%clk 0:00:21.3]} 55. Kh2 {[%clk 0:01:20.2]} 55... Ra2+
{[%clk 0:00:21.1]} 56. Kh3 {[%clk 0:01:20.5]} 56... Ra1 {[%clk 0:00:21.8]} 57.
Rf5+ {[%clk 0:01:21.1]} 57... Ke4 {[%clk 0:00:22.5]} 58. Rf4+ {[%clk 0:01:21.4]}
58... Ke5 {[%clk 0:00:22.7]} 59. Kg4 {[%clk 0:01:20.1]} 59... Rxa5 {[%clk
0:00:22.9]} 60. Rf5+ {[%clk 0:01:20.2]} 1-0

[Event "Early-Titled-Tuesday-Blitz-September-12-2023"]
[Site "Chess.com"]
[Date "2023.09.12"]
[Round "2"]
[White "tsaruk_maks"]
[Black "kleopl"]
[Result "1-0"]
[WhiteElo "2764"]
[BlackElo "2511"]
[TimeControl "180+1"]
[EndTime "8:17:31 PDT"]
[Termination "tsaruk_maks won by checkmate"]

1. e4 {[%clk 0:02:56.2]} 1... c5 {[%clk 0:03:00]} 2. Ne2 {[%clk 0:02:55.8]} 2...
Nf6 {[%clk 0:02:53.8]} 3. Nbc3 {[%clk 0:02:56]} 3... d6 {[%clk 0:02:52.8]} 4. g3
{[%clk 0:02:56.6]} 4... Nc6 {[%clk 0:02:51.2]} 5. Bg2 {[%clk 0:02:55.9]} 5... g6
{[%clk 0:02:51.2]} 6. O-O {[%clk 0:02:55.3]} 6... Bg7 {[%clk 0:02:51.2]} 7. d3
{[%clk 0:02:54.1]} 7... O-O {[%clk 0:02:50.6]} 8. h3 {[%clk 0:02:53.6]} 8... Rb8
{[%clk 0:02:50.1]} 9. Be3 {[%clk 0:02:42.7]} 9... Nd7 {[%clk 0:02:44.7]} 10. Qd2
{[%clk 0:02:42.6]} 10... Nd4 {[%clk 0:02:32.4]} 11. Kh2 {[%clk 0:02:39.8]} 11...
b5 {[%clk 0:02:32]} 12. Rac1 {[%clk 0:02:29.4]} 12... b4 {[%clk 0:02:30.9]} 13.
Nd1 {[%clk 0:02:29.6]} 13... Nxe2 {[%clk 0:02:30.8]} 14. Qxe2 {[%clk 0:02:28.9]}
14... Qa5 {[%clk 0:02:23.4]} 15. Ra1 {[%clk 0:02:20.1]} 15... Ba6 {[%clk
0:02:20.5]} 16. Qd2 {[%clk 0:02:04]} 16... Rfc8 {[%clk 0:02:18.6]} 17. a3 {[%clk
0:02:00.4]} 17... c4 {[%clk 0:02:02.4]} 18. Bxa7 {[%clk 0:01:16.2]} 18... c3
{[%clk 0:02:01.2]} 19. bxc3 {[%clk 0:01:13.3]} 19... bxc3 {[%clk 0:02:02.1]} 20.
Qe3 {[%clk 0:01:09.9]} 20... Rb2 {[%clk 0:01:50.6]} 21. Nxb2 {[%clk 0:01:01]}
21... cxb2 {[%clk 0:01:51.5]} 22. Rab1 {[%clk 0:01:01.2]} 22... Rxc2 {[%clk
0:01:49.7]} 23. Bd4 {[%clk 0:01:01.4]} 23... Qxa3 {[%clk 0:01:45.9]} 24. Bxg7
{[%clk 0:00:56]} 24... Kxg7 {[%clk 0:01:41.6]} 25. Rfd1 {[%clk 0:00:43.6]} 25...
Ne5 {[%clk 0:01:23]} 26. Rd2 {[%clk 0:00:41.3]} 26... Rxd2 {[%clk 0:00:47.1]}
27. Qxd2 {[%clk 0:00:40.5]} 27... Bxd3 {[%clk 0:00:32.8]} 28. Qxb2 {[%clk
0:00:37.4]} 28... Qc5 {[%clk 0:00:29.4]} 29. Rd1 {[%clk 0:00:34.2]} 29... f6
{[%clk 0:00:28.3]} 30. f4 {[%clk 0:00:33.3]} 30... Nc4 {[%clk 0:00:26.2]} 31.
Qb7 {[%clk 0:00:33.8]} 31... Qe3 {[%clk 0:00:17.8]} 32. Qxe7+ {[%clk 0:00:33.7]}
32... Kh6 {[%clk 0:00:15.4]} 33. Qf8+ {[%clk 0:00:34.3]} 33... Kh5 {[%clk
0:00:09.7]} 34. g4+ {[%clk 0:00:35.2]} 34... Kh4 {[%clk 0:00:09.6]} 35. Qh6#
{[%clk 0:00:36.1]} 1-0

[Event "Early-Titled-Tuesday-Blitz-September-12-2023"]
[Site "Chess.com"]
[Date "2023.09.12"]
[Round "2"]
[White "skoularikii"]
[Black "nitpicker"]
[Result "1-0"]
[WhiteElo "2516"]
[BlackElo "2292"]
[TimeControl "180+1"]
[EndTime "8:17:31 PDT"]
[Termination "skoularikii won on time"]

1. e4 {[%clk 0:03:00.9]} 1... c5 {[%clk 0:02:59.5]} 2. Nf3 {[%clk 0:02:54.4]}
2... d6 {[%clk 0:02:59.4]} 3. d4 {[%clk 0:02:36]} 3... cxd4 {[%clk 0:02:59.1]}
4. Nxd4 {[%clk 0:02:35]} 4... Nf6 {[%clk 0:02:59]} 5. Nc3 {[%clk 0:02:30.2]}
5... Nc6 {[%clk 0:02:58.9]} 6. Bg5 {[%clk 0:02:26.3]} 6... Qb6 {[%clk
0:02:56.3]} 7. Nb3 {[%clk 0:02:23.5]} 7... e6 {[%clk 0:02:55.7]} 8. Bd3 {[%clk
0:02:06.5]} 8... a6 {[%clk 0:02:54.5]} 9. O-O {[%clk 0:02:06.3]} 9... Be7 {[%clk
0:02:53.1]} 10. a4 {[%clk 0:02:05.1]} 10... O-O {[%clk 0:02:25.1]} 11. a5 {[%clk
0:01:58.8]} 11... Qc7 {[%clk 0:02:25.7]} 12. Qd2 {[%clk 0:01:53.3]} 12... Rd8
{[%clk 0:02:00.7]} 13. Ra4 {[%clk 0:01:52.1]} 13... Nd7 {[%clk 0:01:58.4]} 14.
Bxe7 {[%clk 0:01:48.2]} 14... Nxe7 {[%clk 0:01:59.3]} 15. Rc4 {[%clk 0:01:48]}
15... Nc6 {[%clk 0:01:52.3]} 16. Na4 {[%clk 0:01:43]} 16... Nde5 {[%clk
0:01:44.1]} 17. Rc3 {[%clk 0:01:41.2]} 17... Bd7 {[%clk 0:01:27]} 18. Nb6 {[%clk
0:01:39.5]} 18... Rab8 {[%clk 0:01:24.7]} 19. f4 {[%clk 0:01:38.1]} 19... Nxd3
{[%clk 0:01:14.5]} 20. cxd3 {[%clk 0:01:35.7]} 20... Be8 {[%clk 0:01:08.1]} 21.
d4 {[%clk 0:01:25]} 21... d5 {[%clk 0:01:00.9]} 22. e5 {[%clk 0:01:23.9]} 22...
Qe7 {[%clk 0:00:58.5]} 23. Rc5 {[%clk 0:01:05]} 23... f6 {[%clk 0:00:53.5]} 24.
exf6 {[%clk 0:00:58.7]} 24... Qxf6 {[%clk 0:00:49.4]} 25. Re1 {[%clk 0:00:52]}
25... Bg6 {[%clk 0:00:47.3]} 26. Qe3 {[%clk 0:00:36.3]} 26... Rd6 {[%clk
0:00:38.1]} 27. Rc3 {[%clk 0:00:36.2]} 27... Rf8 {[%clk 0:00:33.7]} 28. g3
{[%clk 0:00:36.1]} 28... Bf5 {[%clk 0:00:27.6]} 29. Nc5 {[%clk 0:00:35.9]} 29...
Nxd4 {[%clk 0:00:20.1]} 30. Ncd7 {[%clk 0:00:36]} 30... Nc2 {[%clk 0:00:06.3]}
31. Nxf6+ {[%clk 0:00:33.6]} 1-0

[Event "Early-Titled-Tuesday-Blitz-September-12-2023"]
[Site "Chess.com"]
[Date "2023.09.12"]
[Round "2"]
[White "Mikedannnn"]
[Black "mitrabhaa"]
[Result "0-1"]
[WhiteElo "2557"]
[BlackElo "2852"]
[TimeControl "180+1"]
[EndTime "8:17:32 PDT"]
[Termination "mitrabhaa won by resignation"]

1. e4 {[%clk 0:03:00.9]} 1... c6 {[%clk 0:02:58.5]} 2. d4 {[%clk 0:02:59.6]}
2... d5 {[%clk 0:02:59.1]} 3. e5 {[%clk 0:02:57.9]} 3... Bf5 {[%clk 0:02:58.2]}
4. Nf3 {[%clk 0:02:57.4]} 4... e6 {[%clk 0:02:57.6]} 5. Be2 {[%clk 0:02:56.8]}
5... Ne7 {[%clk 0:02:57.6]} 6. O-O {[%clk 0:02:55.5]} 6... Ng6 {[%clk
0:02:57.7]} 7. Be3 {[%clk 0:02:46.9]} 7... Nd7 {[%clk 0:02:57]} 8. Nbd2 {[%clk
0:02:38.8]} 8... f6 {[%clk 0:02:54.6]} 9. exf6 {[%clk 0:02:31.8]} 9... Qxf6
{[%clk 0:02:55.5]} 10. Bg5 {[%clk 0:02:14.9]} 10... Qf7 {[%clk 0:02:55.6]} 11.
h4 {[%clk 0:02:13.8]} 11... Bd6 {[%clk 0:02:53.9]} 12. h5 {[%clk 0:01:36.4]}
12... Nf4 {[%clk 0:02:53.9]} 13. Bxf4 {[%clk 0:01:26.4]} 13... Bxf4 {[%clk
0:02:53.3]} 14. Nh4 {[%clk 0:01:27.1]} 14... O-O {[%clk 0:02:48.8]} 15. Nxf5
{[%clk 0:01:26.1]} 15... exf5 {[%clk 0:02:40.3]} 16. Bd3 {[%clk 0:01:16.5]}
16... Rae8 {[%clk 0:02:33.6]} 17. c3 {[%clk 0:01:09.2]} 17... g6 {[%clk
0:02:28.3]} 18. Nf3 {[%clk 0:00:59]} 18... Nf6 {[%clk 0:02:24.8]} 19. hxg6
{[%clk 0:00:58.5]} 19... hxg6 {[%clk 0:02:24.6]} 20. g3 {[%clk 0:00:58.2]} 20...
Bd6 {[%clk 0:02:24.3]} 21. Ng5 {[%clk 0:00:53.3]} 21... Qe7 {[%clk 0:02:22.2]}
22. Kg2 {[%clk 0:00:48]} 22... Ne4 {[%clk 0:02:20.4]} 23. Nf3 {[%clk 0:00:22.5]}
23... Kg7 {[%clk 0:02:12.7]} 24. Rh1 {[%clk 0:00:22.7]} 24... Rh8 {[%clk
0:02:12.2]} 25. Qe2 {[%clk 0:00:21.8]} 25... Qc7 {[%clk 0:02:11]} 26. Bxe4
{[%clk 0:00:11.7]} 26... dxe4 {[%clk 0:02:05.9]} 27. Nd2 {[%clk 0:00:11.8]}
27... Qe7 {[%clk 0:02:03.1]} 28. Nc4 {[%clk 0:00:12]} 28... Bc7 {[%clk
0:02:03.3]} 29. Rxh8 {[%clk 0:00:09.7]} 29... Rxh8 {[%clk 0:02:03]} 30. Rh1
{[%clk 0:00:09]} 30... Rxh1 {[%clk 0:02:02.7]} 31. Kxh1 {[%clk 0:00:09.2]} 31...
Qg5 {[%clk 0:02:03.3]} 32. Qe3 {[%clk 0:00:07.2]} 32... Qg4 {[%clk 0:01:49.5]}
33. Kg2 {[%clk 0:00:07.2]} 33... Bd8 {[%clk 0:01:34]} 34. Ne5 {[%clk 0:00:07.3]}
34... Qh5 {[%clk 0:01:31.1]} 35. d5 {[%clk 0:00:07.6]} 35... Bf6 {[%clk
0:01:05.6]} 36. Nd7 {[%clk 0:00:07.9]} 36... cxd5 {[%clk 0:01:00.4]} 37. Qxe4
{[%clk 0:00:04.7]} 37... dxe4 {[%clk 0:00:59.7]} 0-1

[Event "Early-Titled-Tuesday-Blitz-September-12-2023"]
[Site "Chess.com"]
[Date "2023.09.12"]
[Round "2"]
[White "GiorgianBarbosa"]
[Black "JAN2404"]
[Result "1-0"]
[WhiteElo "2451"]
[BlackElo "2019"]
[TimeControl "180+1"]
[EndTime "8:17:32 PDT"]
[Termination "GiorgianBarbosa won by resignation"]

1. d4 {[%clk 0:02:40.4]} 1... Nf6 {[%clk 0:02:59.2]} 2. c4 {[%clk 0:02:40.9]}
2... g6 {[%clk 0:02:55.2]} 3. Nc3 {[%clk 0:02:41.8]} 3... Bg7 {[%clk 0:02:55.5]}
4. e4 {[%clk 0:02:42.2]} 4... d6 {[%clk 0:02:55.7]} 5. Nf3 {[%clk 0:02:43.1]}
5... O-O {[%clk 0:02:53.7]} 6. Be2 {[%clk 0:02:43.3]} 6... e5 {[%clk 0:02:53.7]}
7. O-O {[%clk 0:02:43.6]} 7... Nc6 {[%clk 0:02:50.8]} 8. d5 {[%clk 0:02:42.9]}
8... Ne7 {[%clk 0:02:50.6]} 9. Bd2 {[%clk 0:02:42.1]} 9... c6 {[%clk 0:02:44.8]}
10. Ne1 {[%clk 0:02:43]} 10... a5 {[%clk 0:02:35.2]} 11. Nd3 {[%clk 0:02:43]}
11... Nd7 {[%clk 0:02:25.9]} 12. Kh1 {[%clk 0:02:39.9]} 12... f5 {[%clk
0:02:23.1]} 13. f3 {[%clk 0:02:39.2]} 13... f4 {[%clk 0:02:00.4]} 14. dxc6
{[%clk 0:02:29.7]} 14... bxc6 {[%clk 0:01:59.8]} 15. c5 {[%clk 0:02:26]} 15...
d5 {[%clk 0:01:40.8]} 16. exd5 {[%clk 0:02:23.6]} 16... cxd5 {[%clk 0:01:38.8]}
17. Rc1 {[%clk 0:02:17.1]} 17... Bb7 {[%clk 0:01:18.5]} 18. Na4 {[%clk 0:01:37]}
18... Nc6 {[%clk 0:01:05.8]} 19. a3 {[%clk 0:01:23.3]} 19... Kh8 {[%clk
0:00:52.9]} 20. b4 {[%clk 0:01:20.7]} 20... axb4 {[%clk 0:00:53.3]} 21. axb4
{[%clk 0:01:21.6]} 21... Ba6 {[%clk 0:00:53.7]} 22. Ra1 {[%clk 0:01:17.4]} 22...
e4 {[%clk 0:00:45.5]} 23. Nxf4 {[%clk 0:01:11.8]} 23... Bxa1 {[%clk 0:00:44.2]}
24. Qxa1+ {[%clk 0:01:09.6]} 24... Qf6 {[%clk 0:00:44.6]} 25. Qxf6+ {[%clk
0:01:03.4]} 25... Nxf6 {[%clk 0:00:39]} 26. Nb6 {[%clk 0:00:51.2]} 26... exf3
{[%clk 0:00:30.6]} 27. Bxa6 {[%clk 0:00:47.6]} 27... Rxa6 {[%clk 0:00:30.1]} 28.
b5 {[%clk 0:00:47.5]} 28... fxg2+ {[%clk 0:00:28.3]} 29. Nxg2 {[%clk 0:00:44.8]}
29... Ra2 {[%clk 0:00:25.2]} 30. bxc6 {[%clk 0:00:40.5]} 30... Rxd2 {[%clk
0:00:24.1]} 31. c7 {[%clk 0:00:40.9]} 31... Ng4 {[%clk 0:00:11.7]} 32. Rxf8+
{[%clk 0:00:38.6]} 32... Kg7 {[%clk 0:00:11.9]} 1-0

[Event "Early-Titled-Tuesday-Blitz-September-12-2023"]
[Site "Chess.com"]
[Date "2023.09.12"]
[Round "2"]
[White "Lennis93"]
[Black "Juicy_Fork"]
[Result "1-0"]
[WhiteElo "2747"]
[BlackElo "2442"]
[TimeControl "180+1"]
[EndTime "8:17:35 PDT"]
[Termination "Lennis93 won on time"]

1. Nf3 {[%clk 0:03:00.9]} 1... Nf6 {[%clk 0:02:59.5]} 2. c4 {[%clk 0:03:00.4]}
2... g6 {[%clk 0:02:59.8]} 3. Nc3 {[%clk 0:02:59.6]} 3... Bg7 {[%clk 0:02:11.8]}
4. e4 {[%clk 0:02:59.7]} 4... d6 {[%clk 0:02:09]} 5. d4 {[%clk 0:03:00.2]} 5...
O-O {[%clk 0:01:21.8]} 6. h3 {[%clk 0:03:00.5]} 6... e5 {[%clk 0:01:18]} 7. d5
{[%clk 0:03:00.6]} 7... Na6 {[%clk 0:01:18.2]} 8. Be3 {[%clk 0:03:01.2]} 8...
Nc5 {[%clk 0:01:18.2]} 9. Bd3 {[%clk 0:03:01.4]} 9... a5 {[%clk 0:01:13.4]} 10.
Bc2 {[%clk 0:03:01.3]} 10... Nh5 {[%clk 0:01:11.8]} 11. g3 {[%clk 0:03:01.5]}
11... Qe8 {[%clk 0:01:07.1]} 12. Nh4 {[%clk 0:03:01.6]} 12... f5 {[%clk
0:01:03.7]} 13. exf5 {[%clk 0:02:42.6]} 13... gxf5 {[%clk 0:01:04.6]} 14. Qe2
{[%clk 0:02:39.5]} 14... f4 {[%clk 0:00:58.2]} 15. Bxc5 {[%clk 0:02:39.6]} 15...
dxc5 {[%clk 0:00:56.5]} 16. g4 {[%clk 0:02:33.3]} 16... f3 {[%clk 0:00:46.2]}
17. Qd3 {[%clk 0:02:26.4]} 17... Nf6 {[%clk 0:00:34.8]} 18. O-O-O {[%clk
0:02:19.1]} 18... h6 {[%clk 0:00:26]} 19. Rhe1 {[%clk 0:02:18.5]} 19... a4
{[%clk 0:00:13.2]} 20. Ng6 {[%clk 0:02:18.7]} 20... e4 {[%clk 0:00:11.1]} 21.
Nxf8 {[%clk 0:01:04.4]} 21... exd3 {[%clk 0:00:11.2]} 22. Rxe8 {[%clk
0:01:05.3]} 22... Nxe8 {[%clk 0:00:11.8]} 23. Bxa4 {[%clk 0:01:05.9]} 23... Bxc3
{[%clk 0:00:09.7]} 24. Bxe8 {[%clk 0:01:04.8]} 24... Kxf8 {[%clk 0:00:06.2]} 25.
Bg6 {[%clk 0:01:01.5]} 25... Bd4 {[%clk 0:00:05]} 26. Rxd3 {[%clk 0:01:01.7]}
26... Rxa2 {[%clk 0:00:05]} 27. Rxf3+ {[%clk 0:01:02.1]} 27... Kg7 {[%clk
0:00:05.3]} 28. Bh5 {[%clk 0:01:00.4]} 28... Rxb2 {[%clk 0:00:03.1]} 29. Rf7+
{[%clk 0:01:01]} 29... Kg8 {[%clk 0:00:03.5]} 30. Rxc7 {[%clk 0:01:01.9]} 30...
Rxf2 {[%clk 0:00:01.9]} 31. Rxc8+ {[%clk 0:01:02.2]} 31... Kg7 {[%clk
0:00:01.7]} 32. Rc7+ {[%clk 0:01:02.7]} 32... Kf6 {[%clk 0:00:01.3]} 33. Rxb7
{[%clk 0:00:58.3]} 33... Kg5 {[%clk 0:00:01.5]} 34. d6 {[%clk 0:00:58]} 34...
Rf6 {[%clk 0:00:01.3]} 35. d7 {[%clk 0:00:57.1]} 35... Rd6 {[%clk 0:00:01.5]}
36. Be8 {[%clk 0:00:57.7]} 36... Kf6 {[%clk 0:00:01.7]} 37. Rb6 {[%clk
0:00:54.1]} 37... Ke7 {[%clk 0:00:02.1]} 38. Rxd6 {[%clk 0:00:54.2]} 1-0